bitfinex/quotes_BTCUSD_20250829
["timestamp","ask_amount","ask_price","bid_price","bid_amount"]
[1756459359584,0.02541457,109980.0,109970.0,1.54377013]
[1756459359781,0.02541457,109980.0,109970.0,0.50414492]
[1756459359986,0.02541457,109980.0,109970.0,1.54277013]
[1756459360193,0.02641457,109980.0,109970.0,1.54477013]
[1756459360388,0.02641457,109980.0,109970.0,1.54277013]
[1756459360591,0.02541457,109980.0,109970.0,0.50414492]
[1756459360833,0.02541457,109980.0,109970.0,1.47213931]
[1756459361018,0.02541457,109980.0,109970.0,1.47313931]
[1756459361188,0.02541457,109980.0,109970.0,1.47413931]
[1756459363152,0.02541457,109980.0,109970.0,1.47401931]
[1756459363444,0.02541457,109980.0,109970.0,1.47397931]
[1756459363667,0.02541457,109980.0,109970.0,0.2763941]
[1756459363821,0.02753457,109980.0,109970.0,0.2711641]
[1756459364016,1.30452093,109980.0,109970.0,0.002]
[1756459364227,1.25742486,109980.0,109970.0,0.002]
[1756459364645,1.27696247,109980.0,109970.0,0.002]
[1756459364847,1.25742486,109980.0,109970.0,0.00204]
[1756459365056,1.25742486,109980.0,109970.0,0.00104]
[1756459365057,1.43592093,109980.0,109970.0,0.00104]
[1756459365265,1.77592093,109980.0,109970.0,0.00104]
[1756459365475,0.18186778,109970.0,109960.0,4e-05]
[1756459365680,1.2522814,109970.0,109960.0,4e-05]
[1756459365889,1.2574414,109970.0,109960.0,4e-05]
[1756459366101,1.2574414,109970.0,109960.0,0.18715432]
[1756459366102,0.03178841,109970.0,109960.0,0.18715432]
[1756459366315,0.02542761,109970.0,109960.0,0.18715432]
[1756459366915,0.20729539,109970.0,109960.0,0.18715432]
[1756459367174,0.02542761,109970.0,109960.0,0.18715432]
[1756459367527,0.20731398,109970.0,109960.0,0.18715432]
[1756459367940,0.18398778,109970.0,109960.0,0.00527]
[1756459368161,0.21579158,109970.0,109960.0,0.34272432]
[1756459368592,0.21579158,109970.0,109960.0,0.34482432]
[1756459368830,0.21579158,109970.0,109960.0,0.16294]
[1756459368969,0.21579158,109970.0,109960.0,0.34482432]
[1756459370302,1.25441679,109970.0,109960.0,0.16294]
[1756459370664,1.25441679,109970.0,109960.0,4e-05]
[1756459370840,1.25741679,109970.0,109960.0,4e-05]
[1756459371228,1.25441679,109970.0,109960.0,4e-05]
[1756459371691,1.25741679,109970.0,109960.0,4e-05]
[1756459372268,0.21879158,109970.0,109960.0,4e-05]
[1756459372455,1.25741679,109970.0,109960.0,4e-05]
[1756459373747,0.21579158,109970.0,109960.0,0.18192432]
[1756459373953,0.21879158,109970.0,109960.0,4e-05]
[1756459374081,1.25741679,109970.0,109960.0,4e-05]
[1756459374290,0.21879158,109970.0,109960.0,4e-05]
[1756459374494,1.25741679,109970.0,109960.0,4e-05]
[1756459374694,1.25742251,109970.0,109960.0,4e-05]
[1756459377508,1.25442251,109970.0,109960.0,0.18402432]
[1756459377670,0.2157973,109970.0,109960.0,0.18702432]
[1756459378439,0.21372439,109970.0,109960.0,0.18702432]
[1756459380278,0.21574439,109970.0,109960.0,0.18702432]
[1756459380526,1.34566592,109970.0,109960.0,4e-05]
[1756459380709,1.79352995,109970.0,109960.0,4e-05]
[1756459380954,0.1819174,109940.0,109930.0,0.42407041]
[1756459381215,0.20739987,109940.0,109930.0,0.50331027]
[1756459381432,0.20739987,109940.0,109930.0,0.50541027]
[1756459382031,0.02548247,109940.0,109930.0,0.50541027]
[1756459382242,0.02548247,109940.0,109930.0,0.50549611]
[1756459383035,0.20739987,109940.0,109930.0,0.34537611]
[1756459383437,0.20739987,109940.0,109930.0,0.51129611]
[1756459383668,0.02548247,109940.0,109930.0,0.51129611]
[1756459384670,0.20739987,109940.0,109930.0,0.51129611]
[1756459385519,0.02548247,109940.0,109930.0,0.51129611]
[1756459385728,0.00849242,109940.0,109930.0,0.51129611]
[1756459387686,0.00849242,109940.0,109930.0,0.51133611]
[1756459387902,0.00848399,109940.0,109930.0,0.51133611]
[1756459388290,0.20926795,109950.0,109940.0,0.1819174]
[1756459388495,0.23471113,109950.0,109930.0,0.50833611]
[1756459388942,0.23471113,109950.0,109940.0,0.003]
[1756459389150,0.23673113,109950.0,109940.0,0.0051]
[1756459389563,0.26881129,109950.0,109940.0,0.0021]
[1756459389722,0.26881129,109950.0,109940.0,0.0041]
[1756459390089,0.26881129,109950.0,109940.0,0.0061]
[1756459390417,0.26881129,109950.0,109940.0,0.1880174]
[1756459390902,0.26881129,109950.0,109940.0,0.0061]
[1756459391532,0.26881129,109950.0,109940.0,0.004]
[1756459391722,0.27181129,109950.0,109940.0,0.004]
[1756459392287,0.27181129,109950.0,109940.0,0.00404]
[1756459392972,0.27181129,109950.0,109940.0,0.16332]
[1756459393245,1.3074365,109950.0,109940.0,0.3452374]
[1756459393486,1.3074365,109950.0,109940.0,0.3473374]
[1756459393697,1.3074365,109950.0,109940.0,0.16542]
[1756459393920,1.3104365,109950.0,109940.0,0.16332]
[1756459394493,1.3104365,109950.0,109940.0,0.16324]
[1756459395310,1.06367934,109950.0,109940.0,0.16324]
[1756459395550,1.24752529,109950.0,109940.0,0.00404]
[1756459395742,1.59389341,109950.0,109940.0,0.00404]
[1756459395976,1.77048605,109950.0,109940.0,0.00404]
[1756459396340,1.77452605,109950.0,109940.0,0.00404]
[1756459396551,1.77452605,109950.0,109940.0,0.00204]
[1756459396767,1.79408189,109950.0,109940.0,4e-05]
[1756459396982,1.79408189,109950.0,109940.0,0.00104]
[1756459397196,1.95420189,109950.0,109940.0,0.00104]
[1756459397408,1.95320189,109950.0,109940.0,4e-05]
[1756459397819,1.95620189,109950.0,109940.0,4e-05]
[1756459398037,1.95420189,109950.0,109940.0,4e-05]
[1756459398447,1.95419732,109950.0,109940.0,4e-05]
[1756459398982,1.95419503,109950.0,109940.0,4e-05]
[1756459399196,1.79507503,109950.0,109940.0,4e-05]
[1756459399403,1.95407503,109950.0,109940.0,4e-05]
[1756459399604,1.95507503,109950.0,109940.0,4e-05]
[1756459401762,8.16928618,109950.0,109940.0,4e-05]
[1756459401964,3.09126782,109940.0,109930.0,0.00012584]
[1756459402175,8.29377756,109940.0,109930.0,0.00012584]
[1756459402393,8.29870756,109940.0,109930.0,0.00012584]
[1756459402647,7.85660756,109940.0,109930.0,0.00012584]
[1756459402891,8.01564756,109940.0,109930.0,0.00012584]
[1756459403118,6.97702235,109940.0,109930.0,0.00012584]
[1756459403324,8.01964756,109940.0,109930.0,1e-08]
[1756459403541,8.04403158,109940.0,109930.0,1e-08]
[1756459403790,7.00540637,109940.0,109930.0,1e-08]
[1756459404398,7.00940637,109940.0,109930.0,1e-08]
[1756459405477,1.56057571,109920.0,109910.0,0.07067082]
[1756459405706,1.92220545,109920.0,109910.0,0.07397992]
[1756459405888,1.92420545,109920.0,109910.0,0.07604992]
[1756459406964,1.92520545,109920.0,109910.0,0.07604992]
[1756459407383,0.75284178,109920.0,109910.0,0.07604992]
[1756459407603,1.94842699,109920.0,109910.0,0.07604992]
[1756459407834,1.95036699,109920.0,109910.0,0.07604992]
[1756459408306,1.95236699,109920.0,109910.0,0.07604992]
[1756459408766,1.79344699,109920.0,109910.0,0.07604992]
[1756459408984,1.93762753,109920.0,109910.0,0.07604992]
[1756459409219,0.57623758,109920.0,109910.0,0.07604992]
[1756459409423,0.55668174,109920.0,109910.0,0.25801698]
[1756459409651,0.02838501,109920.0,109910.0,1.29664219]
[1756459410171,0.02838501,109920.0,109910.0,1.38493851]
[1756459410370,0.01146167,109920.0,109910.0,1.38493851]
[1756459410563,0.01146167,109920.0,109910.0,0.3463133]
[1756459410778,0.01146167,109920.0,109910.0,1.54397851]
[1756459411394,0.01046167,109920.0,109910.0,1.54397851]
[1756459411610,0.00846167,109920.0,109910.0,1.54397851]
[1756459411820,0.00846167,109920.0,109910.0,1.54497851]
[1756459412232,0.00846167,109920.0,109910.0,1.54397851]
[1756459412657,0.00846167,109920.0,109910.0,1.54597851]
[1756459412857,0.00846167,109920.0,109910.0,1.54897851]
[1756459413691,0.00846167,109920.0,109910.0,1.54929851]
[1756459413938,0.00846167,109920.0,109910.0,0.3513133]
[1756459414152,0.00846167,109920.0,109910.0,0.43996248]
[1756459414366,0.00846167,109920.0,109910.0,1.47858769]
[1756459414587,0.00846167,109920.0,109910.0,1.31930769]
[1756459414799,0.00846167,109920.0,109910.0,1.47858769]
[1756459415010,0.00846167,109920.0,109910.0,1.47870769]
[1756459416192,0.00846167,109920.0,109910.0,0.44008248]
[1756459416398,0.00846167,109920.0,109910.0,1.47870769]
[1756459416842,0.19041217,109920.0,109910.0,1.47870769]
[1756459417071,0.20735073,109920.0,109910.0,1.47870769]
[1756459417394,0.02540023,109920.0,109910.0,1.47870769]
[1756459417604,0.02540023,109920.0,109910.0,0.44008248]
[1756459417800,0.02540023,109920.0,109910.0,1.47858769]
[1756459418037,0.20735073,109920.0,109910.0,0.0104191]
[1756459418461,0.20735073,109920.0,109910.0,0.19238616]
[1756459418902,0.20735073,109920.0,109910.0,0.0084191]
[1756459419137,0.20735073,109920.0,109910.0,0.0094191]
[1756459419376,0.10933073,109920.0,109910.0,0.0094191]
[1756459419671,1.74463581,109920.0,109910.0,0.0001691]
[1756459419925,1.74463581,109920.0,109910.0,0.0011691]
[1756459420132,1.85244943,109920.0,109910.0,0.0011691]
[1756459420449,1.92244943,109920.0,109910.0,0.0011691]
[1756459420873,1.92244943,109920.0,109910.0,0.0001691]
[1756459421076,1.92244943,109920.0,109910.0,0.0011691]
[1756459421077,1.92344943,109920.0,109910.0,0.0011691]
[1756459421498,1.89591282,109920.0,109910.0,0.0011691]
[1756459421709,1.89591282,109920.0,109910.0,0.0001691]
[1756459421912,1.89791282,109920.0,109910.0,0.0001691]
[1756459424443,0.72774422,109920.0,109910.0,0.0001691]
[1756459424649,0.88666422,109920.0,109910.0,0.0001691]
[1756459424857,1.89480282,109920.0,109910.0,0.0001691]
[1756459425065,0.88371422,109920.0,109910.0,0.0001691]
[1756459425274,0.54820158,109920.0,109910.0,0.0022391]
[1756459425489,0.70502158,109920.0,109910.0,0.0054191]
[1756459425983,0.70502158,109920.0,109910.0,0.0001691]
[1756459425984,0.68530346,109920.0,109910.0,0.0001691]
[1756459426203,1.69439206,109920.0,109910.0,0.0001691]
[1756459426434,1.69634206,109920.0,109910.0,0.0001691]
[1756459426674,1.78563838,109920.0,109910.0,0.0001691]
[1756459427114,1.78463838,109920.0,109910.0,0.0001691]
[1756459427541,0.68430346,109920.0,109910.0,0.0001691]
[1756459427962,0.68530346,109920.0,109910.0,0.0001691]
[1756459428175,0.68330346,109920.0,109910.0,0.0001691]
[1756459428385,0.68530346,109920.0,109910.0,0.0001691]
[1756459428596,1.69639206,109920.0,109910.0,0.0001691]
[1756459429038,1.69339206,109920.0,109910.0,0.0001691]
[1756459429284,1.73546189,109920.0,109910.0,0.0053591]
[1756459429502,1.73646189,109920.0,109910.0,0.0053591]
[1756459429717,1.69465206,109920.0,109910.0,0.0053591]
[1756459429925,1.69663206,109920.0,109910.0,0.0053591]
[1756459430104,1.69365206,109920.0,109910.0,0.0053591]
[1756459430524,1.69166193,109920.0,109910.0,0.0053591]
[1756459430957,1.69266193,109920.0,109910.0,0.0053591]
[1756459431171,1.69464193,109920.0,109910.0,0.0053591]
[1756459431377,1.72009574,109920.0,109910.0,0.0053591]
[1756459431594,1.56105574,109920.0,109910.0,0.0053591]
[1756459431821,1.71993574,109920.0,109910.0,0.0053591]
[1756459433868,1.71993574,109920.0,109910.0,0.0001691]
[1756459434716,1.71993574,109920.0,109910.0,0.0053591]
[1756459434932,1.7199386,109920.0,109910.0,0.0053591]
[1756459435155,1.7179586,109920.0,109910.0,0.0053591]
[1756459435384,0.5284727,109920.0,109910.0,0.18732616]
[1756459435600,0.6871927,109920.0,109910.0,0.18732616]
[1756459435735,0.4584727,109920.0,109910.0,0.18732616]
[1756459435941,0.6171927,109920.0,109910.0,0.18732616]
[1756459436154,0.2771927,109920.0,109910.0,0.18732616]
[1756459436596,0.6171927,109920.0,109910.0,0.18732616]
[1756459440595,1.6302613,109920.0,109910.0,0.0022291]
[1756459440819,1.6302613,109920.0,109910.0,0.0001691]
[1756459441078,1.6302872,109920.0,109910.0,0.0001691]
[1756459441308,0.6191986,109920.0,109910.0,0.0001691]
[1756459441551,1.62830919,109920.0,109910.0,0.18732616]
[1756459441770,1.62194007,109920.0,109910.0,0.18732616]
[1756459441994,1.62827109,109920.0,109910.0,0.18732616]
[1756459442203,0.61718249,109920.0,109910.0,0.18732616]
[1756459442652,0.71348038,109920.0,109910.0,0.18732616]
[1756459443457,1.74859508,109920.0,109910.0,0.18722499]
[1756459443768,1.74860155,109920.0,109910.0,0.18718041]
[1756459444006,1.74760155,109920.0,109910.0,0.18718041]
[1756459444227,1.74860155,109920.0,109910.0,0.18718041]
[1756459444709,1.74760155,109920.0,109910.0,0.18818041]
[1756459445147,1.74760155,109920.0,109910.0,0.18918041]
[1756459446982,1.74958155,109920.0,109910.0,0.00721335]
[1756459448292,1.74958155,109920.0,109910.0,0.00621335]
[1756459448474,1.75058155,109920.0,109910.0,0.00621335]
[1756459449254,1.75058155,109920.0,109910.0,0.00521335]
[1756459449911,1.75058155,109920.0,109910.0,0.00208335]
[1756459450118,1.75058155,109920.0,109910.0,2.335e-05]
[1756459450781,1.73359722,109920.0,109910.0,2.335e-05]
[1756459451022,1.75063639,109920.0,109910.0,2.335e-05]
[1756459451219,1.75063639,109920.0,109910.0,0.00102335]
[1756459451415,1.74963577,109920.0,109910.0,0.00102335]
[1756459451613,1.74963577,109920.0,109910.0,0.00202335]
[1756459452153,1.74963577,109920.0,109910.0,0.00102335]
[1756459452557,1.75063577,109920.0,109910.0,0.00102335]
[1756459452975,1.75063577,109920.0,109910.0,2.335e-05]
[1756459453387,1.74958101,109920.0,109910.0,2.335e-05]
[1756459454287,1.74958101,109920.0,109910.0,0.18718041]
[1756459454288,0.71446631,109920.0,109910.0,0.18718041]
[1756459454536,1.74958101,109920.0,109910.0,0.00521335]
[1756459455243,1.74858101,109920.0,109910.0,0.18718041]
[1756459455438,1.74858101,109920.0,109910.0,0.00521335]
[1756459455646,1.74958101,109920.0,109910.0,0.00521335]
[1756459456257,1.74958101,109920.0,109910.0,0.00208335]
[1756459456473,1.74958101,109920.0,109910.0,2.335e-05]
[1756459456688,1.75153101,109920.0,109910.0,2.335e-05]
[1756459457143,1.74858101,109920.0,109910.0,2.335e-05]
[1756459457791,1.74854101,109920.0,109910.0,0.18199041]
[1756459458016,1.74854101,109920.0,109910.0,0.00521335]
[1756459458236,1.74854101,109920.0,109910.0,0.00621335]
[1756459458645,1.75149101,109920.0,109910.0,2.335e-05]
[1756459459087,1.75249101,109920.0,109910.0,2.335e-05]
[1756459459866,1.74954101,109920.0,109910.0,2.335e-05]
[1756459461108,1.59090101,109920.0,109910.0,2.335e-05]
[1756459461322,1.59090101,109920.0,109910.0,0.18724041]
[1756459461323,0.55578631,109920.0,109910.0,0.18724041]
[1756459461558,1.7495236,109920.0,109910.0,0.18724041]
[1756459461985,1.7495236,109920.0,109910.0,0.00527335]
[1756459462186,1.74952348,109920.0,109910.0,0.00527335]
[1756459462399,1.74852348,109920.0,109910.0,0.00527335]
[1756459462749,1.74952348,109920.0,109910.0,0.00527335]
[1756459462979,1.74952348,109920.0,109910.0,2.335e-05]
[1756459463354,2.78758818,109920.0,109910.0,2.335e-05]
[1756459463831,2.81495018,109920.0,109910.0,2.335e-05]
[1756459464043,2.81495018,109920.0,109910.0,0.00102335]
[1756459464255,2.81395018,109920.0,109910.0,0.00102335]
[1756459464464,2.81395018,109920.0,109910.0,0.00202335]
[1756459464755,2.9022465,109920.0,109910.0,0.00202335]
[1756459464949,2.9022465,109920.0,109910.0,0.00102335]
[1756459465183,2.90225379,109920.0,109910.0,2.335e-05]
[1756459465361,2.90325379,109920.0,109910.0,2.335e-05]
[1756459465775,2.90225379,109920.0,109910.0,2.335e-05]
[1756459466082,1.27612439,109920.0,109910.0,2.335e-05]
[1756459466356,3.34635379,109920.0,109910.0,2.335e-05]
[1756459466551,3.01216252,109920.0,109910.0,2.335e-05]
[1756459467745,3.01316252,109920.0,109910.0,2.335e-05]
[1756459468568,3.08316252,109920.0,109910.0,2.335e-05]
[1756459468772,3.08316888,109920.0,109910.0,2.335e-05]
[1756459469612,2.92452888,109920.0,109910.0,2.335e-05]
[1756459469747,3.08312888,109920.0,109910.0,2.335e-05]
[1756459470209,2.04801418,109920.0,109910.0,2.335e-05]
[1756459470771,2.04506418,109920.0,109910.0,2.335e-05]
[1756459470981,1.69025913,109920.0,109910.0,2.335e-05]
[1756459471187,1.84885913,109920.0,109910.0,2.335e-05]
[1756459471821,1.84685913,109920.0,109910.0,0.00527335]
[1756459472233,1.84684579,109920.0,109910.0,0.00527335]
[1756459472841,0.81073109,109920.0,109910.0,0.00527335]
[1756459473048,1.84584579,109920.0,109910.0,0.00205335]
[1756459474916,1.84584579,109920.0,109910.0,2.335e-05]
[1756459475567,1.84580579,109920.0,109910.0,0.00527335]
[1756459476248,1.84580579,109920.0,109910.0,2.335e-05]
[1756459476415,1.84875579,109920.0,109910.0,2.335e-05]
[1756459476586,1.93705211,109920.0,109910.0,2.335e-05]
[1756459476808,1.95665574,109920.0,109910.0,2.335e-05]
[1756459477011,1.95370574,109920.0,109910.0,2.335e-05]
[1756459477213,1.93410211,109920.0,109910.0,0.00527335]
[1756459477637,1.84580579,109920.0,109910.0,0.00527335]
[1756459477988,1.84382579,109920.0,109910.0,0.00527335]
[1756459478433,1.84580579,109920.0,109910.0,0.00205335]
[1756459478564,1.84580579,109920.0,109910.0,2.335e-05]
[1756459478764,1.68724579,109920.0,109910.0,2.335e-05]
[1756459478973,1.84580579,109920.0,109910.0,0.00527335]
[1756459479831,1.84580579,109920.0,109910.0,0.00205335]
[1756459480035,1.84580579,109920.0,109910.0,2.335e-05]
[1756459480914,1.84382579,109920.0,109910.0,0.00527335]
[1756459481392,1.61526579,109920.0,109910.0,0.00527335]
[1756459481607,1.77382579,109920.0,109910.0,0.00527335]
[1756459481802,1.77382579,109920.0,109910.0,0.07590417]
[1756459482014,1.43484055,109920.0,109910.0,0.25787123]
[1756459482217,0.39972585,109920.0,109910.0,0.25787123]
[1756459482430,1.77484055,109920.0,109910.0,0.25787123]
[1756459482890,1.77485525,109920.0,109910.0,0.25787123]
[1756459483119,0.21385855,109920.0,109910.0,0.25787123]
[1756459484157,0.03190805,109920.0,109910.0,0.25787123]
[1756459484770,0.03190805,109920.0,109910.0,0.34616755]
[1756459484988,0.02552644,109920.0,109910.0,0.34616755]
[1756459485196,0.01701763,109920.0,109910.0,0.34616755]
[1756459485623,0.01701763,109920.0,109910.0,0.34716755]
[1756459486032,0.01701763,109920.0,109910.0,0.34816755]
[1756459487417,1.4119662,109940.0,109920.0,0.18193721]
[1756459487577,0.39965817,109940.0,109930.0,0.18718395]
[1756459487750,0.24117817,109940.0,109930.0,0.18718395]
[1756459487950,0.21382117,109940.0,109930.0,0.18718395]
[1756459488152,0.02552305,109940.0,109930.0,0.18718395]
[1756459488625,0.20844045,109940.0,109930.0,0.18718395]
[1756459488826,0.20944045,109940.0,109930.0,0.18718395]
[1756459489161,0.02652305,109940.0,109930.0,0.18718395]
[1756459489382,0.20844045,109940.0,109930.0,0.18718395]
[1756459490009,0.20744045,109940.0,109930.0,0.18718395]
[1756459490578,1.38784326,109950.0,109930.0,0.18718395]
[1756459490786,0.001,109940.0,109930.0,0.18396395]
[1756459491429,1.72784326,109950.0,109940.0,0.1819174]
[1756459491605,1.7342168,109950.0,109940.0,0.1869074]
[1756459492048,1.5777368,109950.0,109940.0,0.1869074]
[1756459492261,1.72980326,109950.0,109940.0,0.1869074]
[1756459492470,0.02509683,109950.0,109940.0,0.1869074]
[1756459492682,0.20799769,109950.0,109940.0,0.1869074]
[1756459493305,0.20599769,109950.0,109940.0,0.1869074]
[1756459493512,1.24111239,109950.0,109940.0,0.1869074]
[1756459493719,1.24309239,109950.0,109940.0,0.1869074]
[1756459493927,0.20797769,109950.0,109940.0,0.1869074]
[1756459494132,1.24509239,109950.0,109940.0,0.1869074]
[1756459495434,1.24311239,109950.0,109940.0,0.1869074]
[1756459496427,0.20799769,109950.0,109940.0,0.1869074]
[1756459496631,1.24311239,109950.0,109940.0,0.1869074]
[1756459497253,0.02609683,109950.0,109940.0,0.1869074]
[1756459497433,1.06121153,109950.0,109940.0,0.1869074]
[1756459497752,1.24311239,109950.0,109940.0,0.1869074]
[1756459498278,0.20799769,109950.0,109940.0,0.1869074]
[1756459498482,0.20699769,109950.0,109940.0,0.1869074]
[1756459498683,0.02509683,109950.0,109940.0,0.1869074]
[1756459499575,0.02309683,109950.0,109940.0,0.1879074]
[1756459499744,2.19397269,109960.0,109950.0,0.18190086]
[1756459499944,2.19595269,109960.0,109950.0,0.00499]
[1756459500566,2.19595269,109960.0,109950.0,0.18689086]
[1756459500958,2.03755269,109960.0,109950.0,0.18693868]
[1756459501171,2.19591269,109960.0,109950.0,0.00203782]
[1756459501374,2.19591269,109960.0,109950.0,0.00503782]
[1756459501573,1.16079799,109960.0,109950.0,0.18693868]
[1756459501764,0.811431,109960.0,109950.0,0.18693868]
[1756459502075,0.4421,109960.0,109950.0,0.34529868]
[1756459502435,0.45907686,109960.0,109950.0,0.34529868]
[1756459502636,0.46756529,109960.0,109950.0,0.34529868]
[1756459502837,0.64944961,109960.0,109950.0,0.34525868]
[1756459503066,0.67309234,109960.0,109950.0,0.34525868]
[1756459503271,0.64762705,109960.0,109950.0,0.18693868]
[1756459503477,0.67507333,109960.0,109950.0,0.18693868]
[1756459503859,0.67506119,109960.0,109950.0,0.18693868]
[1756459504073,1.71017589,109960.0,109950.0,0.18693868]
[1756459504682,1.71017589,109960.0,109950.0,0.18793868]
[1756459504896,1.71017589,109960.0,109950.0,0.18797868]
[1756459505304,0.67506119,109960.0,109950.0,0.18897868]
[1756459505521,0.67506119,109960.0,109950.0,0.00208782]
[1756459505522,1.71017589,109960.0,109950.0,0.00208782]
[1756459505777,2.83653691,109960.0,109950.0,0.00208782]
[1756459506187,2.86388891,109960.0,109950.0,0.00208782]
[1756459506400,2.86388891,109960.0,109950.0,0.00108782]
[1756459506604,3.29218523,109960.0,109950.0,8.782e-05]
[1756459506817,2.85845797,109960.0,109950.0,8.782e-05]
[1756459507237,2.87603228,109960.0,109950.0,8.782e-05]
[1756459507446,2.87803228,109960.0,109950.0,8.782e-05]
[1756459507660,3.32013228,109960.0,109950.0,8.782e-05]
[1756459508073,3.34458947,109960.0,109950.0,8.782e-05]
[1756459508308,8.34458947,109960.0,109950.0,8.782e-05]
[1756459508497,8.34558947,109960.0,109950.0,8.782e-05]
[1756459509120,8.34358947,109960.0,109950.0,8.782e-05]
[1756459509338,8.34658947,109960.0,109950.0,8.782e-05]
[1756459509597,1.55704865,109930.0,109920.0,4e-05]
[1756459509807,1.40078279,109930.0,109920.0,8.788e-05]
[1756459510007,1.40277279,109930.0,109920.0,8.788e-05]
[1756459510439,0.24311109,109930.0,109920.0,0.00507788]
[1756459510648,1.43650579,109930.0,109920.0,0.00507788]
[1756459510880,1.27822579,109930.0,109920.0,0.00507788]
[1756459511312,1.27822579,109930.0,109920.0,0.00707788]
[1756459511542,1.27922579,109930.0,109920.0,0.00707788]
[1756459512747,1.27922579,109930.0,109920.0,0.00907788]
[1756459513772,1.26436203,109930.0,109920.0,0.00907788]
[1756459513942,1.27927332,109930.0,109920.0,0.00907788]
[1756459514696,0.24415862,109930.0,109920.0,0.00907788]
[1756459514898,1.27927332,109930.0,109920.0,0.00607788]
[1756459515331,1.27927332,109930.0,109920.0,0.00907788]
[1756459518028,0.40239862,109930.0,109920.0,0.00907788]
[1756459518211,1.43751332,109930.0,109920.0,0.00907788]
[1756459520062,1.27927332,109930.0,109920.0,0.00907788]
[1756459520266,1.43747332,109930.0,109920.0,0.00408788]
[1756459520679,0.24415862,109930.0,109920.0,0.00623788]
[1756459520893,1.27927332,109930.0,109920.0,0.00921788]
[1756459521179,1.27927332,109930.0,109920.0,0.19116838]
[1756459521180,0.24216862,109930.0,109920.0,0.19116838]
[1756459521374,0.0265011,109930.0,109920.0,0.2794647]
[1756459522620,0.0265011,109930.0,109920.0,0.3494247]
[1756459522827,0.001,109930.0,109920.0,0.3494247]
[1756459523665,0.02651015,109930.0,109920.0,0.3494247]
[1756459523869,0.02651149,109930.0,109920.0,0.3494247]
[1756459524079,0.001,109930.0,109920.0,0.3494247]
[1756459526860,0.001,109930.0,109920.0,1.3845394]
[1756459527781,0.001,109930.0,109920.0,2.80092082]
[1756459528656,0.001,109930.0,109920.0,1.79315412]
[1756459528900,0.001,109930.0,109920.0,1.95127412]
[1756459529967,0.001,109930.0,109920.0,0.91615942]
[1756459530180,0.001,109930.0,109920.0,1.95127412]
[1756459531347,0.001,109930.0,109920.0,2.19315412]
[1756459531569,0.001,109930.0,109920.0,2.35127412]
[1756459531800,0.001,109930.0,109920.0,0.81803942]
[1756459532057,0.001,109930.0,109920.0,0.97611942]
[1756459532296,0.001,109930.0,109920.0,1.61123412]
[1756459533085,0.001,109930.0,109920.0,1.5699674]
[1756459534712,0.001,109930.0,109920.0,0.5348527]
[1756459534851,0.001,109930.0,109920.0,1.5699674]
[1756459536295,0.001,109930.0,109920.0,0.5348527]
[1756459536510,0.001,109930.0,109920.0,1.5699674]
[1756459539612,0.001,109930.0,109920.0,0.5348527]
[1756459539825,0.001,109930.0,109920.0,1.5699674]
[1756459540024,0.001,109930.0,109920.0,1.9099674]
[1756459540870,0.001,109930.0,109920.0,2.9450821]
[1756459541154,0.001,109930.0,109920.0,1.9099674]
[1756459541356,0.001,109930.0,109920.0,1.9099274]
[1756459543052,0.001,109930.0,109920.0,2.3099274]
[1756459543659,0.001,109930.0,109920.0,2.1518874]
[1756459543827,0.001,109930.0,109920.0,2.3099274]
[1756459544661,0.001,109930.0,109920.0,2.1518874]
[1756459544858,0.001,109930.0,109920.0,2.3099274]
[1756459545581,0.001,109930.0,109920.0,1.2748127]
[1756459545791,0.030307,109970.0,109960.0,0.18188432]
[1756459545998,0.02550215,109970.0,109960.0,0.42818064]
[1756459546191,0.01048071,109970.0,109960.0,0.42818064]
[1756459546695,0.00198,109970.0,109960.0,0.43331064]
[1756459546848,0.05057052,109980.0,109970.0,0.18186778]
[1756459547049,0.05030072,109980.0,109970.0,0.18186778]
[1756459547293,0.05030072,109980.0,109970.0,0.17886778]
[1756459548682,0.05029835,109980.0,109970.0,0.17886778]
[1756459548891,0.00849936,109980.0,109970.0,0.18394778]
[1756459549128,0.01006936,109980.0,109970.0,0.17886778]
[1756459549747,0.01406936,109980.0,109970.0,0.17886778]
[1756459549962,0.01406936,109980.0,109970.0,0.2722441]
[1756459550121,0.01249936,109980.0,109970.0,0.2722441]
[1756459551349,0.01406936,109980.0,109970.0,0.2722441]
[1756459551568,0.01249936,109980.0,109970.0,0.4302041]
[1756459552816,0.01249936,109980.0,109970.0,0.2722441]
[1756459553017,0.01406936,109980.0,109970.0,0.4302041]
[1756459554482,0.03107161,109980.0,109970.0,0.4302041]
[1756459555306,0.01406936,109980.0,109970.0,0.4302041]
[1756459555508,0.01407218,109980.0,109970.0,0.4301641]
[1756459555952,0.03107654,109980.0,109970.0,0.4250841]
[1756459558913,0.03107654,109980.0,109970.0,0.4280741]
[1756459559114,0.03107375,109980.0,109970.0,0.4280741]
[1756459560095,0.21292499,109980.0,109970.0,0.4250841]
[1756459560322,0.21292499,109980.0,109970.0,0.24621632]
[1756459560497,1.24803969,109980.0,109970.0,0.33974778]
[1756459561798,1.24803969,109980.0,109970.0,0.15788]
[1756459562011,0.18186778,109970.0,109960.0,0.1849222]
[1756459562212,1.24405623,109970.0,109960.0,0.43109852]
[1756459562414,1.24405623,109970.0,109960.0,0.0883442]
[1756459562619,1.24405623,109970.0,109960.0,0.3398122]
[1756459562989,0.20894153,109970.0,109960.0,0.3398122]
[1756459564576,0.20832649,109970.0,109960.0,0.3398122]
[1756459565002,0.20830757,109970.0,109960.0,0.3428022]
[1756459565221,0.20830757,109970.0,109960.0,0.3398122]
[1756459566006,0.20830933,109970.0,109960.0,0.3398122]
[1756459567929,0.20830933,109970.0,109960.0,0.3428022]
[1756459569337,1.24342403,109970.0,109960.0,0.3428022]
[1756459569936,1.24342403,109970.0,109960.0,0.3448922]
[1756459570520,1.06217129,109970.0,109960.0,0.3448922]
[1756459570754,1.24403907,109970.0,109960.0,0.3448922]
[1756459570961,1.24403907,109970.0,109960.0,0.3428022]
[1756459571565,1.24403907,109970.0,109960.0,0.15788788]
[1756459571813,1.25041746,109970.0,109960.0,4.788e-05]
[1756459572032,1.27874509,109970.0,109960.0,4.788e-05]
[1756459572243,1.27874509,109970.0,109960.0,0.15784788]
[1756459575142,1.27874509,109970.0,109960.0,0.15788788]
[1756459575338,1.25538576,109970.0,109960.0,0.15788788]
[1756459575614,1.27877528,109970.0,109960.0,0.15788788]
[1756459575960,1.36707081,109970.0,109960.0,0.15788788]
[1756459576735,0.33195611,109970.0,109960.0,0.15788788]
[1756459576984,1.27877449,109970.0,109960.0,0.15788788]
[1756459577206,1.27779449,109970.0,109960.0,0.15788788]
[1756459580388,1.27779449,109970.0,109960.0,8.788e-05]
[1756459580832,1.27779449,109970.0,109960.0,0.15784788]
[1756459582290,0.24267979,109970.0,109960.0,0.15784788]
[1756459582528,1.27779022,109970.0,109960.0,0.16079788]
[1756459582747,1.27779022,109970.0,109960.0,0.15784788]
[1756459582970,1.27779022,109970.0,109960.0,0.16079788]
[1756459583180,1.27779022,109970.0,109960.0,0.00303788]
[1756459583392,1.27779022,109970.0,109960.0,0.15784788]